[Event "*** SCC Grand Prix: Titled Tuesday Blitz"]
[Site "Chess.com"]
[Date "2020.07.21"]
[Round "2"]
[White "pastouche06"]
[Black "Schack-Hugo"]
[Result "1-0"]
[WhiteElo "2528"]
[BlackElo "2161"]
[TimeControl "180+1"]
[EndTime "10:18:20 PDT"]
[Termination "pastouche06 won by checkmate"]

1. d4 {[%clk 0:03:00.9]} 1... c6 {[%clk 0:03:00.9]} 2. c4 {[%clk 0:02:59.7]}
2... d5 {[%clk 0:03:01.8]} 3. Nf3 {[%clk 0:02:59.2]} 3... Nf6 {[%clk 0:03:00.9]}
4. Qc2 {[%clk 0:02:59.4]} 4... e6 {[%clk 0:02:51.8]} 5. g3 {[%clk 0:02:59.2]}
5... Nbd7 {[%clk 0:02:51.1]} 6. Bg2 {[%clk 0:02:57.5]} 6... Bd6 {[%clk
0:02:50.9]} 7. O-O {[%clk 0:02:57.5]} 7... O-O {[%clk 0:02:50.9]} 8. Nbd2 {[%clk
0:02:57.7]} 8... Re8 {[%clk 0:02:49.4]} 9. Rd1 {[%clk 0:02:53.3]} 9... e5 {[%clk
0:02:37.6]} 10. dxe5 {[%clk 0:02:45.5]} 10... Nxe5 {[%clk 0:02:38.5]} 11. cxd5
{[%clk 0:02:43.8]} 11... cxd5 {[%clk 0:02:28.9]} 12. Nxe5 {[%clk 0:02:39.5]}
12... Bxe5 {[%clk 0:02:29.8]} 13. Nf3 {[%clk 0:02:39.8]} 13... Bd6 {[%clk
0:01:48]} 14. Bg5 {[%clk 0:02:29.1]} 14... Be6 {[%clk 0:01:42]} 15. Nd4 {[%clk
0:02:25.6]} 15... Rc8 {[%clk 0:01:37.6]} 16. Qb3 {[%clk 0:02:24.5]} 16... b6
{[%clk 0:01:23.3]} 17. e3 {[%clk 0:02:15.1]} 17... h6 {[%clk 0:01:19.1]} 18.
Bxf6 {[%clk 0:02:13.7]} 18... Qxf6 {[%clk 0:01:18.9]} 19. Bxd5 {[%clk
0:02:13.2]} 19... Bxd5 {[%clk 0:01:17.9]} 20. Qxd5 {[%clk 0:02:14.1]} 20... Be5
{[%clk 0:01:16.2]} 21. Rd2 {[%clk 0:01:35.9]} 21... Red8 {[%clk 0:00:58.5]} 22.
Qe4 {[%clk 0:01:33.6]} 22... Rc4 {[%clk 0:00:40.9]} 23. Rad1 {[%clk 0:01:25]}
23... Rdc8 {[%clk 0:00:39.4]} 24. b3 {[%clk 0:01:22.5]} 24... Rc1 {[%clk
0:00:36.3]} 25. Nf3 {[%clk 0:01:17.3]} 25... Rxd1+ {[%clk 0:00:33.8]} 26. Rxd1
{[%clk 0:01:17.3]} 26... Bd6 {[%clk 0:00:23.7]} 27. Kg2 {[%clk 0:01:10.1]} 27...
Bf8 {[%clk 0:00:20.3]} 28. Rd2 {[%clk 0:01:06.8]} 28... a5 {[%clk 0:00:17.3]}
29. Qe5 {[%clk 0:00:54.4]} 29... Qc6 {[%clk 0:00:15.3]} 30. Qd5 {[%clk
0:00:49.1]} 30... Qf6 {[%clk 0:00:13.6]} 31. Nd4 {[%clk 0:00:39.7]} 31... Rd8
{[%clk 0:00:13.2]} 32. Qf3 {[%clk 0:00:38.6]} 32... Qxf3+ {[%clk 0:00:11.7]} 33.
Kxf3 {[%clk 0:00:39.5]} 33... Bc5 {[%clk 0:00:10.6]} 34. Ke4 {[%clk 0:00:37.5]}
34... g6 {[%clk 0:00:10.6]} 35. Nf3 {[%clk 0:00:25.8]} 35... Re8+ {[%clk
0:00:11.5]} 36. Kd3 {[%clk 0:00:25.6]} 36... Rd8+ {[%clk 0:00:11.5]} 37. Ke2
{[%clk 0:00:25.8]} 37... Re8 {[%clk 0:00:11.8]} 38. Nd4 {[%clk 0:00:25.4]} 38...
Kg7 {[%clk 0:00:11.8]} 39. Nb5 {[%clk 0:00:25]} 39... Re5 {[%clk 0:00:11.6]} 40.
Nc7 {[%clk 0:00:21.1]} 40... Re7 {[%clk 0:00:10.8]} 41. Nd5 {[%clk 0:00:20.2]}
41... Rd7 {[%clk 0:00:11.1]} 42. e4 {[%clk 0:00:20.4]} 42... Rb7 {[%clk
0:00:11.3]} 43. Kd3 {[%clk 0:00:19.8]} 43... g5 {[%clk 0:00:11.5]} 44. Kc4
{[%clk 0:00:19.3]} 44... Rb8 {[%clk 0:00:10.3]} 45. Kb5 {[%clk 0:00:19.2]} 45...
Rc8 {[%clk 0:00:10.7]} 46. f4 {[%clk 0:00:18.9]} 46... gxf4 {[%clk 0:00:10.2]}
47. gxf4 {[%clk 0:00:19.8]} 47... Rb8 {[%clk 0:00:10]} 48. e5 {[%clk 0:00:19.6]}
48... Rd8 {[%clk 0:00:08.2]} 49. Rg2+ {[%clk 0:00:19.2]} 49... Kf8 {[%clk
0:00:07.5]} 50. Nf6 {[%clk 0:00:19.6]} 50... Rd2 {[%clk 0:00:06.7]} 51. Rxd2
{[%clk 0:00:18.8]} 51... Be7 {[%clk 0:00:05.8]} 52. Rg2 {[%clk 0:00:18.5]} 52...
Bxf6 {[%clk 0:00:06.6]} 53. exf6 {[%clk 0:00:19.1]} 53... Ke8 {[%clk 0:00:07.5]}
54. Rd2 {[%clk 0:00:18.8]} 54... h5 {[%clk 0:00:06.1]} 55. h4 {[%clk 0:00:18.9]}
55... a4 {[%clk 0:00:05.8]} 56. bxa4 {[%clk 0:00:19.7]} 56... Kf8 {[%clk
0:00:05.4]} 57. Rd8# {[%clk 0:00:20.1]} 1-0

[Event "*** SCC Grand Prix: Titled Tuesday Blitz"]
[Site "Chess.com"]
[Date "2020.07.21"]
[Round "2"]
[White "HanSchut"]
[Black "doons21"]
[Result "0-1"]
[WhiteElo "2311"]
[BlackElo "2642"]
[TimeControl "180+1"]
[EndTime "10:18:20 PDT"]
[Termination "doons21 won by resignation"]

1. e4 {[%clk 0:03:00.7]} 1... c5 {[%clk 0:02:58.7]} 2. Nf3 {[%clk 0:03:00.8]}
2... d6 {[%clk 0:02:58.5]} 3. d4 {[%clk 0:03:01.3]} 3... cxd4 {[%clk 0:02:59.4]}
4. Nxd4 {[%clk 0:03:01.5]} 4... Nf6 {[%clk 0:02:59.7]} 5. f3 {[%clk 0:03:02.3]}
5... e5 {[%clk 0:02:54]} 6. Bb5+ {[%clk 0:03:01.5]} 6... Nbd7 {[%clk 0:02:53.8]}
7. Nf5 {[%clk 0:03:01.7]} 7... Qc7 {[%clk 0:02:44.8]} 8. c4 {[%clk 0:02:53.7]}
8... a6 {[%clk 0:02:41.8]} 9. Bxd7+ {[%clk 0:02:53.8]} 9... Bxd7 {[%clk
0:02:41]} 10. Ne3 {[%clk 0:02:54.5]} 10... b5 {[%clk 0:02:18.8]} 11. cxb5 {[%clk
0:02:53.4]} 11... axb5 {[%clk 0:02:18.3]} 12. Nc3 {[%clk 0:02:54]} 12... Be6
{[%clk 0:01:50.8]} 13. Ncd5 {[%clk 0:02:53.6]} 13... Bxd5 {[%clk 0:01:51]} 14.
Nxd5 {[%clk 0:02:54.5]} 14... Nxd5 {[%clk 0:01:49.9]} 15. Qxd5 {[%clk
0:02:55.4]} 15... Rb8 {[%clk 0:01:48.1]} 16. Be3 {[%clk 0:02:44.7]} 16... Qb7
{[%clk 0:01:48.6]} 17. Qxb7 {[%clk 0:02:29]} 17... Rxb7 {[%clk 0:01:49.5]} 18.
Rc1 {[%clk 0:02:29.4]} 18... Kd7 {[%clk 0:01:49.9]} 19. Kd2 {[%clk 0:02:23.1]}
19... b4 {[%clk 0:01:49]} 20. Kc2 {[%clk 0:02:15.6]} 20... Be7 {[%clk
0:01:42.5]} 21. Kb3 {[%clk 0:02:15.7]} 21... g6 {[%clk 0:01:41.6]} 22. Rc4
{[%clk 0:02:14.3]} 22... Rhb8 {[%clk 0:01:39.1]} 23. Rhc1 {[%clk 0:02:10.4]}
23... f5 {[%clk 0:01:39.3]} 24. Bd2 {[%clk 0:02:07.4]} 24... fxe4 {[%clk
0:01:23.5]} 25. fxe4 {[%clk 0:02:07.6]} 25... Rf8 {[%clk 0:01:23.3]} 26. Rxb4
{[%clk 0:02:00.4]} 26... Rxb4+ {[%clk 0:01:21.3]} 27. Bxb4 {[%clk 0:02:01.3]}
27... Rf4 {[%clk 0:01:18.3]} 28. a4 {[%clk 0:01:45.9]} 28... Rxe4 {[%clk
0:01:17.9]} 29. a5 {[%clk 0:01:46.5]} 29... Rf4 {[%clk 0:01:08.7]} 30. a6 {[%clk
0:01:43.5]} 30... Rf8 {[%clk 0:01:08.9]} 31. Ba5 {[%clk 0:01:38.8]} 31... Ra8
{[%clk 0:00:57.2]} 32. Rc7+ {[%clk 0:01:37.1]} 32... Ke6 {[%clk 0:00:57.2]} 33.
Rc6 {[%clk 0:01:15.5]} 33... Kd5 {[%clk 0:00:51.9]} 34. Rb6 {[%clk 0:01:07.5]}
34... e4 {[%clk 0:00:26.7]} 35. Ka4 {[%clk 0:01:00.1]} 35... e3 {[%clk
0:00:20.1]} 36. b4 {[%clk 0:00:49.8]} 36... Bd8 {[%clk 0:00:15.9]} 37. Rb5+
{[%clk 0:00:48.3]} 37... Kc4 {[%clk 0:00:15.5]} 38. Bxd8 {[%clk 0:00:37.3]}
38... Rxd8 {[%clk 0:00:09.2]} 39. Rb7 {[%clk 0:00:35.8]} 39... Re8 {[%clk
0:00:08.1]} 40. a7 {[%clk 0:00:35.9]} 40... e2 {[%clk 0:00:08.6]} 41. Rb8 {[%clk
0:00:36.2]} 41... e1=Q {[%clk 0:00:07.8]} 42. Ka5 {[%clk 0:00:13.4]} 42... Qa1+
{[%clk 0:00:08.1]} 43. Kb6 {[%clk 0:00:13.7]} 43... Qd4+ {[%clk 0:00:08.5]} 44.
Kb7 {[%clk 0:00:08.7]} 44... Qd5+ {[%clk 0:00:07.4]} 45. Ka6 {[%clk 0:00:06.6]}
45... Qc6+ {[%clk 0:00:05.4]} 46. Rb6 {[%clk 0:00:06]} 46... Qa4+ {[%clk
0:00:04.6]} 47. Kb7 {[%clk 0:00:06.5]} 47... Re7+ {[%clk 0:00:05.1]} 0-1

[Event "*** SCC Grand Prix: Titled Tuesday Blitz"]
[Site "Chess.com"]
[Date "2020.07.21"]
[Round "2"]
[White "davigator"]
[Black "kingmonkey2006"]
[Result "1-0"]
[WhiteElo "2337"]
[BlackElo "2613"]
[TimeControl "180+1"]
[EndTime "10:18:22 PDT"]
[Termination "davigator won by checkmate"]

1. e4 {[%clk 0:03:00.9]} 1... c5 {[%clk 0:02:59.9]} 2. Nf3 {[%clk 0:03:00.3]}
2... d6 {[%clk 0:02:59.9]} 3. d4 {[%clk 0:03:00.3]} 3... cxd4 {[%clk 0:03:00.8]}
4. Nxd4 {[%clk 0:03:00]} 4... Nf6 {[%clk 0:03:01.4]} 5. Nc3 {[%clk 0:03:00]}
5... a6 {[%clk 0:03:01.8]} 6. Bg5 {[%clk 0:02:59]} 6... e6 {[%clk 0:03:01.3]} 7.
f4 {[%clk 0:02:55.6]} 7... Be7 {[%clk 0:03:00.4]} 8. Qf3 {[%clk 0:02:55.1]} 8...
h6 {[%clk 0:03:00.6]} 9. Bxf6 {[%clk 0:02:54.2]} 9... Bxf6 {[%clk 0:03:00.3]}
10. O-O-O {[%clk 0:02:54.5]} 10... Qb6 {[%clk 0:02:59.5]} 11. Nde2 {[%clk
0:02:50.7]} 11... Be7 {[%clk 0:02:52.1]} 12. g4 {[%clk 0:02:50.1]} 12... Nc6
{[%clk 0:02:51.2]} 13. h4 {[%clk 0:02:49.9]} 13... Bd7 {[%clk 0:02:49.5]} 14. g5
{[%clk 0:02:49.7]} 14... O-O-O {[%clk 0:02:37.4]} 15. Bh3 {[%clk 0:02:48]} 15...
hxg5 {[%clk 0:02:21.5]} 16. hxg5 {[%clk 0:02:47.4]} 16... Qc5 {[%clk 0:01:35.7]}
17. Bg2 {[%clk 0:02:26.2]} 17... Kb8 {[%clk 0:01:32.5]} 18. a3 {[%clk
0:02:21.9]} 18... g6 {[%clk 0:01:20.7]} 19. Kb1 {[%clk 0:02:13.5]} 19... Bc8
{[%clk 0:01:10.8]} 20. Rh6 {[%clk 0:02:07.2]} 20... Rxh6 {[%clk 0:01:08.7]} 21.
gxh6 {[%clk 0:02:07]} 21... Rh8 {[%clk 0:01:09.6]} 22. Rh1 {[%clk 0:02:06]}
22... Bf6 {[%clk 0:01:05.6]} 23. Qg3 {[%clk 0:01:38.1]} 23... Nd4 {[%clk
0:00:58.6]} 24. Qe3 {[%clk 0:01:22.1]} 24... Nxe2 {[%clk 0:00:28.7]} 25. Qxc5
{[%clk 0:01:21.3]} 25... Nxc3+ {[%clk 0:00:24.4]} 26. Qxc3 {[%clk 0:01:21.2]}
26... Bxc3 {[%clk 0:00:24.4]} 27. bxc3 {[%clk 0:01:21.9]} 27... Kc7 {[%clk
0:00:25.3]} 28. e5 {[%clk 0:01:21.6]} 28... dxe5 {[%clk 0:00:18.6]} 29. fxe5
{[%clk 0:01:21.3]} 29... Rh7 {[%clk 0:00:16.5]} 30. Be4 {[%clk 0:01:17.3]} 30...
Bd7 {[%clk 0:00:15.8]} 31. Rh2 {[%clk 0:01:06.6]} 31... Bc6 {[%clk 0:00:15.7]}
32. Bd3 {[%clk 0:01:06.8]} 32... Kb6 {[%clk 0:00:13.1]} 33. Kc1 {[%clk
0:00:53.2]} 33... Kc5 {[%clk 0:00:12.9]} 34. Kd2 {[%clk 0:00:53.7]} 34... Kd5
{[%clk 0:00:13.2]} 35. Rh5 {[%clk 0:00:54]} 35... Rh8 {[%clk 0:00:09.3]} 36. c4+
{[%clk 0:00:44.5]} 36... Kd4 {[%clk 0:00:09]} 37. c3+ {[%clk 0:00:44.2]} 37...
Kc5 {[%clk 0:00:09.6]} 38. Rh4 {[%clk 0:00:43.5]} 38... Rh7 {[%clk 0:00:09.1]}
39. Ke3 {[%clk 0:00:40.8]} 39... Kb6 {[%clk 0:00:07.3]} 40. Kf4 {[%clk
0:00:40.7]} 40... Kc7 {[%clk 0:00:07.2]} 41. Kg5 {[%clk 0:00:41]} 41... Kd7
{[%clk 0:00:06.9]} 42. Kf6 {[%clk 0:00:41.5]} 42... Ke8 {[%clk 0:00:06.5]} 43.
Bxg6 {[%clk 0:00:41.8]} 43... fxg6 {[%clk 0:00:06]} 44. Kxg6 {[%clk 0:00:42.5]}
44... Rh8 {[%clk 0:00:01.8]} 45. Kg7 {[%clk 0:00:42.5]} 45... Rf8 {[%clk
0:00:01.1]} 46. h7 {[%clk 0:00:42]} 46... Rf7+ {[%clk 0:00:01.6]} 47. Kg6 {[%clk
0:00:41.9]} 47... Rf8 {[%clk 0:00:02.5]} 48. h8=Q {[%clk 0:00:41.7]} 48... Rxh8
{[%clk 0:00:03.4]} 49. Rxh8+ {[%clk 0:00:41.6]} 49... Kd7 {[%clk 0:00:04.3]} 50.
Kf6 {[%clk 0:00:41.8]} 50... Be4 {[%clk 0:00:04.5]} 51. Rh5 {[%clk 0:00:33.2]}
51... Kc6 {[%clk 0:00:05.4]} 52. Kxe6 {[%clk 0:00:32.2]} 52... Bd3 {[%clk
0:00:06.1]} 53. Rh4 {[%clk 0:00:31.2]} 53... Kc5 {[%clk 0:00:05.6]} 54. Kd7
{[%clk 0:00:31.1]} 54... b5 {[%clk 0:00:05.5]} 55. cxb5 {[%clk 0:00:30.4]} 55...
axb5 {[%clk 0:00:06.4]} 56. e6 {[%clk 0:00:30.1]} 56... Bf5 {[%clk 0:00:07.3]}
57. Rh5 {[%clk 0:00:29.3]} 57... Kc4 {[%clk 0:00:07.1]} 58. Rxf5 {[%clk
0:00:29.2]} 58... Kxc3 {[%clk 0:00:08]} 59. Rxb5 {[%clk 0:00:29.4]} 59... Kc4
{[%clk 0:00:08]} 60. Rb1 {[%clk 0:00:30]} 60... Kc3 {[%clk 0:00:08.2]} 61. e7
{[%clk 0:00:30.3]} 61... Kc2 {[%clk 0:00:09.1]} 62. Rb4 {[%clk 0:00:30.1]} 62...
Kc3 {[%clk 0:00:05.8]} 63. e8=Q {[%clk 0:00:29.3]} 63... Kc2 {[%clk 0:00:04.4]}
64. Qe2+ {[%clk 0:00:29.2]} 64... Kc3 {[%clk 0:00:03.8]} 65. Rc4+ {[%clk
0:00:29.7]} 65... Kb3 {[%clk 0:00:04.2]} 66. Qc2+ {[%clk 0:00:29.8]} 66... Kxa3
{[%clk 0:00:05.1]} 67. Ra4# {[%clk 0:00:29.6]} 1-0

[Event "*** SCC Grand Prix: Titled Tuesday Blitz"]
[Site "Chess.com"]
[Date "2020.07.21"]
[Round "2"]
[White "vanyakuba"]
[Black "Quiet_Desperation"]
[Result "1-0"]
[WhiteElo "2448"]
[BlackElo "2229"]
[TimeControl "180+1"]
[EndTime "10:18:22 PDT"]
[Termination "vanyakuba won by resignation"]

1. e4 {[%clk 0:03:00.9]} 1... e6 {[%clk 0:02:59.3]} 2. d4 {[%clk 0:03:01]} 2...
d5 {[%clk 0:02:59]} 3. exd5 {[%clk 0:03:01.9]} 3... exd5 {[%clk 0:02:55.3]} 4.
Nf3 {[%clk 0:03:02.8]} 4... c6 {[%clk 0:02:33.1]} 5. c4 {[%clk 0:03:03]} 5...
Bg4 {[%clk 0:02:26.6]} 6. Nc3 {[%clk 0:03:00.5]} 6... Nf6 {[%clk 0:02:17.6]} 7.
Bd3 {[%clk 0:02:46.4]} 7... dxc4 {[%clk 0:02:15]} 8. Bxc4 {[%clk 0:02:47.3]}
8... Bxf3 {[%clk 0:02:15]} 9. Qxf3 {[%clk 0:02:27.8]} 9... Qxd4 {[%clk
0:02:12.9]} 10. Qe2+ {[%clk 0:02:24.3]} 10... Be7 {[%clk 0:02:08.7]} 11. Be3
{[%clk 0:02:21.2]} 11... Qe5 {[%clk 0:02:04.8]} 12. f4 {[%clk 0:02:02.8]} 12...
Qa5 {[%clk 0:02:02]} 13. O-O {[%clk 0:01:38.8]} 13... O-O {[%clk 0:02:00.8]} 14.
Kh1 {[%clk 0:01:38.4]} 14... Bc5 {[%clk 0:01:51.1]} 15. Bd2 {[%clk 0:01:37.1]}
15... Re8 {[%clk 0:01:43.8]} 16. Qf3 {[%clk 0:01:32.2]} 16... Qc7 {[%clk
0:01:42.9]} 17. g4 {[%clk 0:01:14.9]} 17... Nbd7 {[%clk 0:01:17.2]} 18. g5
{[%clk 0:01:14]} 18... Nd5 {[%clk 0:01:17.3]} 19. Nxd5 {[%clk 0:01:10.4]} 19...
cxd5 {[%clk 0:01:17.4]} 20. Bxd5 {[%clk 0:01:08.6]} 20... Nb6 {[%clk 0:01:12.2]}
21. Bb3 {[%clk 0:01:09]} 21... Rad8 {[%clk 0:01:10.2]} 22. Bc3 {[%clk
0:00:57.4]} 22... Re3 {[%clk 0:01:07.7]} 23. Qg2 {[%clk 0:00:57.2]} 23... Rde8
{[%clk 0:01:06]} 24. Rae1 {[%clk 0:00:43.3]} 24... Rxe1 {[%clk 0:01:05.7]} 25.
Rxe1 {[%clk 0:00:44.2]} 25... Rxe1+ {[%clk 0:01:04.6]} 26. Bxe1 {[%clk
0:00:45.1]} 26... Qxf4 {[%clk 0:01:03.2]} 27. h4 {[%clk 0:00:31.9]} 27... Qe3
{[%clk 0:00:37.5]} 28. Bg3 {[%clk 0:00:21.5]} 28... g6 {[%clk 0:00:26.8]} 29.
Kh2 {[%clk 0:00:15.6]} 29... Qe7 {[%clk 0:00:20.8]} 30. Qf3 {[%clk 0:00:11.2]}
30... Bd6 {[%clk 0:00:19.9]} 31. Bxd6 {[%clk 0:00:03.1]} 31... Qxd6+ {[%clk
0:00:19.5]} 32. Kh3 {[%clk 0:00:03.7]} 32... Qd7+ {[%clk 0:00:17.9]} 33. Kg3
{[%clk 0:00:03.5]} 33... Qc7+ {[%clk 0:00:17.5]} 34. Kh3 {[%clk 0:00:03.5]}
34... a5 {[%clk 0:00:15.1]} 35. a3 {[%clk 0:00:03.2]} 35... a4 {[%clk 0:00:15]}
36. Ba2 {[%clk 0:00:03.3]} 36... Qd7+ {[%clk 0:00:14.4]} 37. Kg3 {[%clk
0:00:03.6]} 37... Qe7 {[%clk 0:00:14.4]} 38. Qf4 {[%clk 0:00:03.6]} 38... Kg7
{[%clk 0:00:14.3]} 39. Qd4+ {[%clk 0:00:03.5]} 39... Kg8 {[%clk 0:00:14.2]} 40.
Qxb6 {[%clk 0:00:04.1]} 40... Kg7 {[%clk 0:00:13.4]} 41. Qd4+ {[%clk 0:00:04]}
41... Kg8 {[%clk 0:00:13]} 42. Bd5 {[%clk 0:00:04.6]} 42... Qd6+ {[%clk
0:00:12]} 43. Kf3 {[%clk 0:00:04.5]} 43... Qe7 {[%clk 0:00:12.9]} 44. Qe4 {[%clk
0:00:04.5]} 44... Qc7 {[%clk 0:00:12.7]} 45. Bxb7 {[%clk 0:00:04.5]} 45... Kg7
{[%clk 0:00:11.2]} 46. Bd5 {[%clk 0:00:04.4]} 46... Kg8 {[%clk 0:00:11.5]} 47.
Qf4 {[%clk 0:00:04]} 47... Qe7 {[%clk 0:00:08.9]} 48. Bxf7+ {[%clk 0:00:03.2]}
48... Qxf7 {[%clk 0:00:08.7]} 49. Qxf7+ {[%clk 0:00:03.6]} 49... Kxf7 {[%clk
0:00:09.6]} 50. Ke4 {[%clk 0:00:04.1]} 50... Ke6 {[%clk 0:00:09.9]} 51. Kd4
{[%clk 0:00:04.1]} 51... Kf5 {[%clk 0:00:10.2]} 52. Kc4 {[%clk 0:00:04.7]} 52...
Kg4 {[%clk 0:00:10.6]} 53. b4 {[%clk 0:00:05.1]} 53... axb3 {[%clk 0:00:09.5]}
54. Kxb3 {[%clk 0:00:06]} 54... Kxh4 {[%clk 0:00:09.4]} 55. a4 {[%clk
0:00:06.9]} 55... Kxg5 {[%clk 0:00:08.6]} 56. a5 {[%clk 0:00:07.8]} 56... h5
{[%clk 0:00:09.3]} 57. a6 {[%clk 0:00:08.7]} 57... h4 {[%clk 0:00:10.2]} 58. a7
{[%clk 0:00:09.6]} 58... h3 {[%clk 0:00:10.9]} 59. a8=Q {[%clk 0:00:10.5]} 1-0

[Event "*** SCC Grand Prix: Titled Tuesday Blitz"]
[Site "Chess.com"]
[Date "2020.07.21"]
[Round "2"]
[White "TargetA"]
[Black "Anton_Demchenko"]
[Result "0-1"]
[WhiteElo "2544"]
[BlackElo "2830"]
[TimeControl "180+1"]
[EndTime "10:18:23 PDT"]
[Termination "Anton_Demchenko won by resignation"]

1. e4 {[%clk 0:03:00.9]} 1... e5 {[%clk 0:02:57.6]} 2. Nf3 {[%clk 0:03:00.2]}
2... Nc6 {[%clk 0:02:58.1]} 3. Bc4 {[%clk 0:03:00.5]} 3... Nf6 {[%clk 0:02:58]}
4. d3 {[%clk 0:03:00]} 4... Be7 {[%clk 0:02:58.4]} 5. O-O {[%clk 0:02:58.1]}
5... O-O {[%clk 0:02:59.1]} 6. Nbd2 {[%clk 0:02:56.5]} 6... d6 {[%clk 0:03:00]}
7. c3 {[%clk 0:02:55.9]} 7... Kh8 {[%clk 0:02:59.7]} 8. Re1 {[%clk 0:02:46.6]}
8... Ng8 {[%clk 0:02:59.5]} 9. d4 {[%clk 0:02:45.3]} 9... Bg4 {[%clk 0:02:59.6]}
10. h3 {[%clk 0:02:39.8]} 10... Bh5 {[%clk 0:02:59.9]} 11. Be2 {[%clk
0:02:18.6]} 11... Bg6 {[%clk 0:02:45.3]} 12. Bf1 {[%clk 0:02:02]} 12... exd4
{[%clk 0:02:26.7]} 13. cxd4 {[%clk 0:02:02.9]} 13... d5 {[%clk 0:02:26.8]} 14.
e5 {[%clk 0:01:51.2]} 14... Nb4 {[%clk 0:02:22.8]} 15. Nb3 {[%clk 0:01:13.9]}
15... Nc2 {[%clk 0:02:21]} 16. Be3 {[%clk 0:01:12.3]} 16... Nxa1 {[%clk
0:02:16.2]} 17. Qxa1 {[%clk 0:01:13.2]} 17... a5 {[%clk 0:02:09.8]} 18. Qc1
{[%clk 0:01:13.3]} 18... b6 {[%clk 0:02:04.2]} 19. Nbd2 {[%clk 0:01:11.8]} 19...
c5 {[%clk 0:02:02.6]} 20. Qc3 {[%clk 0:01:07.7]} 20... c4 {[%clk 0:02:01.4]} 21.
a4 {[%clk 0:01:06.3]} 21... Bb4 {[%clk 0:02:00.5]} 22. Qc1 {[%clk 0:01:06.4]}
22... Rc8 {[%clk 0:01:59.7]} 23. Re2 {[%clk 0:01:03.9]} 23... Bd3 {[%clk
0:01:50.8]} 24. Re1 {[%clk 0:01:03.4]} 24... Bf5 {[%clk 0:01:50.9]} 25. Re2
{[%clk 0:01:02.7]} 25... Qe8 {[%clk 0:01:47.6]} 26. Qd1 {[%clk 0:01:01.6]} 26...
Bd7 {[%clk 0:01:47.7]} 27. b3 {[%clk 0:01:00]} 27... c3 {[%clk 0:01:32.2]} 28.
Nb1 {[%clk 0:00:59.3]} 28... Bf5 {[%clk 0:01:32.9]} 29. Ne1 {[%clk 0:00:56.7]}
29... f6 {[%clk 0:01:25.7]} 30. Nc2 {[%clk 0:00:56]} 30... Qg6 {[%clk
0:01:20.9]} 31. Bf4 {[%clk 0:00:50.3]} 31... Bxh3 {[%clk 0:01:19.1]} 32. e6
{[%clk 0:00:50.5]} 32... Bg4 {[%clk 0:01:14.7]} 33. Qc1 {[%clk 0:00:44.6]} 33...
Bxe2 {[%clk 0:01:12.9]} 34. Bxe2 {[%clk 0:00:45.5]} 34... Rce8 {[%clk
0:01:02.8]} 35. Ne3 {[%clk 0:00:45.5]} 35... Rxe6 {[%clk 0:00:59.9]} 36. Bf3
{[%clk 0:00:45.8]} 36... c2 {[%clk 0:00:54.9]} 37. Qxc2 {[%clk 0:00:43.7]} 37...
Rxe3 {[%clk 0:00:50.9]} 38. Qxg6 {[%clk 0:00:36.9]} 38... Re1+ {[%clk
0:00:51.2]} 39. Kh2 {[%clk 0:00:37.8]} 39... hxg6 {[%clk 0:00:51.6]} 40. Nd2
{[%clk 0:00:37.7]} 40... Bxd2 {[%clk 0:00:46]} 41. Bxd2 {[%clk 0:00:38.6]} 41...
Re4 {[%clk 0:00:46.6]} 42. Bxe4 {[%clk 0:00:36.3]} 42... dxe4 {[%clk 0:00:47.1]}
43. Kg3 {[%clk 0:00:37.2]} 43... g5 {[%clk 0:00:46.5]} 44. f3 {[%clk 0:00:37]}
44... Re8 {[%clk 0:00:45.7]} 45. Kf2 {[%clk 0:00:36.9]} 45... exf3 {[%clk
0:00:45.4]} 46. gxf3 {[%clk 0:00:36.7]} 46... Ne7 {[%clk 0:00:45.7]} 47. b4
{[%clk 0:00:36.5]} 47... Ra8 {[%clk 0:00:43.4]} 48. b5 {[%clk 0:00:35.3]} 48...
Nd5 {[%clk 0:00:43.1]} 49. Ke2 {[%clk 0:00:35.7]} 49... Kh7 {[%clk 0:00:42.7]}
50. Kd3 {[%clk 0:00:36.6]} 50... Kg6 {[%clk 0:00:42.1]} 51. Ke4 {[%clk
0:00:37.2]} 51... Rd8 {[%clk 0:00:41.3]} 52. Be1 {[%clk 0:00:37.2]} 52... Kf7
{[%clk 0:00:41.5]} 53. Bg3 {[%clk 0:00:37.1]} 53... Ke6 {[%clk 0:00:41.7]} 54.
Bh2 {[%clk 0:00:36.4]} 54... Rc8 {[%clk 0:00:41.9]} 55. f4 {[%clk 0:00:36.4]}
55... f5+ {[%clk 0:00:41.7]} 56. Kd3 {[%clk 0:00:36]} 56... g4 {[%clk
0:00:41.4]} 57. Bg3 {[%clk 0:00:36.4]} 57... Rc3+ {[%clk 0:00:39.8]} 58. Kd2
{[%clk 0:00:36.9]} 58... Ra3 {[%clk 0:00:38.5]} 59. Bh4 {[%clk 0:00:36.4]} 59...
Rxa4 {[%clk 0:00:38.6]} 60. Bd8 {[%clk 0:00:37.3]} 60... Rb4 {[%clk 0:00:38.8]}
61. Bxb6 {[%clk 0:00:38.2]} 61... Rxb5 {[%clk 0:00:38.2]} 62. Bc5 {[%clk
0:00:39.1]} 62... a4 {[%clk 0:00:38.5]} 63. Kd3 {[%clk 0:00:38.9]} 63... Rb3+
{[%clk 0:00:38]} 64. Kc2 {[%clk 0:00:38.9]} 64... g6 {[%clk 0:00:38.3]} 65. Bf8
{[%clk 0:00:37.5]} 65... Kd7 {[%clk 0:00:38.7]} 66. Bc5 {[%clk 0:00:37.7]} 66...
Kc6 {[%clk 0:00:39.2]} 67. Bf8 {[%clk 0:00:38.3]} 67... Kb5 {[%clk 0:00:39.8]}
68. Bc5 {[%clk 0:00:38.9]} 68... Kc4 {[%clk 0:00:40.3]} 69. Bf8 {[%clk
0:00:38.6]} 69... Nxf4 {[%clk 0:00:40.8]} 70. Bd6 {[%clk 0:00:38.4]} 70... Nd5
{[%clk 0:00:41.2]} 71. Be5 {[%clk 0:00:38.4]} 71... g5 {[%clk 0:00:41]} 72. Bd6
{[%clk 0:00:37.9]} 72... f4 {[%clk 0:00:41.3]} 0-1